bitfinex/quotes_SOLUSD_20251006
["timestamp","ask_amount","ask_price","bid_price","bid_amount"]
[1759750419283,4.2903724,233.08,233.07,1e-08]
[1759750419990,34.9103724,233.08,233.07,1e-08]
[1759750420700,4.2903724,233.08,233.07,1e-08]
[1759750421002,38.25884972,233.08,233.07,1e-08]
[1759750421691,49.13532493,233.08,233.07,1e-08]
[1759750422797,50.85298461,233.08,233.07,1e-08]
[1759750422988,49.13532493,233.08,233.07,1e-08]
[1759750423189,50.85298461,233.08,233.07,1e-08]
[1759750424692,20.23298461,233.08,233.07,1e-08]
[1759750424903,50.83298461,233.08,233.07,1e-08]
[1759750426208,18.51532493,233.08,233.07,1e-08]
[1759750426392,37.51884972,233.08,233.07,1e-08]
[1759750427094,38.21884972,233.08,233.07,1e-08]
[1759750427494,6.93884972,233.08,233.07,1e-08]
[1759750427807,37.51884972,233.08,233.07,1e-08]
[1759750430911,38.21884972,233.08,233.07,1e-08]
[1759750431117,18.51532493,233.08,233.07,1e-08]
[1759750431285,49.07532493,233.08,233.07,1e-08]
[1759750432384,2.64847732,233.03,233.02,0.2]
[1759750432583,33.18847732,233.03,233.02,0.2]
[1759750433337,37.47977028,233.03,233.02,0.2]
[1759750433925,6.93977028,233.03,233.02,0.2]
[1759750434217,37.47977028,233.03,233.02,0.2]
[1759750435415,34.83129296,233.03,233.02,0.2]
[1759750435615,37.47977028,233.03,233.02,0.2]
[1759750435919,34.83129296,233.03,233.02,0.2]
[1759750436086,37.47977028,233.03,233.02,0.2]
[1759750436290,49.05624549,233.03,233.01,0.2]
[1759750436493,14.22495253,233.02,233.01,0.2]
[1759750436728,13.29465136,233.02,233.01,0.2]
[1759750436897,1.71817615,233.02,233.01,0.91]
[1759750437092,30.54,233.02,233.01,0.91]
[1759750437292,30.54,233.02,233.01,0.2]
[1759750437900,30.54,233.02,233.01,0.91]
[1759750438104,34.83147712,233.02,233.01,0.2]
[1759750438909,34.83147712,233.02,233.01,0.91]
[1759750439407,34.83147712,233.02,233.01,0.2]
[1759750439812,37.47995444,233.02,233.01,0.2]
[1759750440640,4.29147712,233.02,233.01,0.2]
[1759750440826,37.47995444,233.02,233.01,0.2]
[1759750442237,6.93995444,233.02,233.01,0.2]
[1759750442421,34.83147712,233.02,233.01,0.2]
[1759750442629,37.47995444,233.02,233.01,0.2]
[1759750442832,17.81642965,233.02,233.01,0.2]
[1759750443022,49.03642965,233.02,233.01,0.2]
[1759750443627,49.03642965,233.02,233.01,1e-08]
[1759750444549,31.67647521,232.99,232.98,1e-08]
[1759750444735,64.84495253,232.99,232.98,1e-08]
[1759750444930,69.83698223,232.99,232.98,1e-08]
[1759750446128,67.18850491,232.99,232.98,1e-08]
[1759750446321,69.83698223,232.99,232.98,1e-08]
[1759750448528,20.8,232.95,232.89,0.71]
[1759750448718,2.64847732,232.92,232.89,0.71]
[1759750448917,2.64847732,232.92,232.87,0.2]
[1759750448918,30.52,232.91,232.9,0.71]
[1759750449133,33.16847732,232.91,232.88,0.71]
[1759750449328,2.64847732,232.9,232.88,0.71]
[1759750449630,30.52,232.89,232.88,0.71]
[1759750449841,34.81387264,232.89,232.88,0.71]
[1759750450129,34.81387264,232.89,232.87,0.2]
[1759750450945,34.81387264,232.89,232.87,0.91]
[1759750451146,34.81387264,232.89,232.87,0.2]
[1759750451331,2.64847732,232.88,232.87,0.2]
[1759750451651,3.34847732,232.88,232.87,0.2]
[1759750451830,7.64253434,232.88,232.87,0.2]
[1759750452144,6.94253434,232.88,232.87,0.2]
[1759750452324,17.81900955,232.88,232.87,0.2]
[1759750453248,17.57045742,232.88,232.87,0.2]
[1759750453641,15.17053223,232.88,232.87,0.2]
[1759750454027,16.87045742,232.88,232.87,0.2]
[1759750454533,17.57045742,232.88,232.87,0.2]
[1759750454739,48.07045742,232.88,232.87,0.2]
[1759750455129,36.47398221,232.88,232.87,0.2]
[1759750455825,37.17398221,232.88,232.87,0.2]
[1759750456029,48.05045742,232.88,232.87,0.2]
[1759750456356,48.05045742,232.88,232.87,1e-08]
[1759750458726,31.67647521,232.84,232.83,0.2]
[1759750459037,63.8564004,232.84,232.83,0.2]
[1759750459830,68.8211951,232.84,232.83,0.2]
[1759750461258,68.8211951,232.84,232.83,1e-08]
[1759750461437,38.3411951,232.84,232.83,1e-08]
[1759750461638,38.3411951,232.84,232.79,0.2]
[1759750461639,81.25810706,232.84,232.79,1e-08]
[1759750461841,14.27632559,232.8,232.79,1e-08]
[1759750462038,31.67647521,232.76,232.66,0.2]
[1759750462249,1.69992519,232.71,232.66,0.2]
[1759750462445,10.87647521,232.76,232.66,0.2]
[1759750462446,32.21992519,232.7,232.66,0.2]
[1759750462631,30.52,232.69,232.66,0.2]
[1759750463430,4.29774798,232.68,232.66,0.2]
[1759750463641,32.21992519,232.67,232.66,0.2]
[1759750464166,4.29749489,232.7,232.66,0.91]
[1759750464364,30.58,232.69,232.67,0.71]
[1759750464736,32.27992519,232.69,232.67,0.71]
[1759750465141,32.27992519,232.69,232.66,0.2]
[1759750465350,32.27992519,232.69,232.66,0.91]
[1759750465558,36.57754406,232.69,232.67,0.71]
[1759750465928,20.8,232.71,232.68,0.71]
[1759750466132,10.87647521,232.76,232.69,0.71]
[1759750466442,1.69992519,232.76,232.69,0.71]
[1759750466639,30.54,232.75,232.69,0.71]
[1759750466837,30.58,232.74,232.69,0.71]
[1759750467051,1.69992519,232.76,232.69,0.71]
[1759750467261,30.6,232.75,232.69,0.71]
[1759750467439,4.29664002,232.74,232.69,0.71]
[1759750467639,30.6,232.75,232.7,0.71]
[1759750467850,30.6,232.75,232.71,0.71]
[1759750468136,30.6,232.75,232.72,0.71]
[1759750468350,34.89649102,232.75,232.72,0.71]
[1759750468532,1.69992519,232.8,232.73,0.71]
[1759750468856,16.8711951,232.84,232.73,0.71]
[1759750469029,4.2947947,232.84,232.73,0.71]
[1759750469230,16.73170666,232.84,232.74,4.29664002]
[1759750469441,5.99471989,232.84,232.75,0.71]
[1759750469654,4.2947947,232.84,232.75,0.71]
[1759750470038,1.69992519,232.86,232.75,0.71]
[1759750470039,4.29455961,232.86,232.75,0.71]
[1759750470453,4.29387264,232.89,232.75,0.71]
[1759750470761,25.90438723,232.9,232.77,20.8]
[1759750470962,1.69992519,232.89,232.78,0.71]
[1759750471467,25.90438723,232.9,232.79,4.29571716]
[1759750471669,1.69992519,232.89,232.79,4.29571716]
[1759750472777,21.46311367,232.96,232.81,20.8]
[1759750472778,4.29276668,232.95,232.81,20.8]
[1759750473060,1.69992519,232.94,232.82,0.71]
[1759750473237,16.72460859,232.95,232.82,0.71]
[1759750473586,4.29276668,232.95,232.82,0.71]
[1759750474085,4.29257677,232.97,232.82,0.71]
[1759750474266,36.49357217,232.97,232.82,0.71]
[1759750474563,1.69992519,232.89,232.78,25.8059017]
[1759750474770,5.99398221,232.88,232.78,25.8059017]
[1759750474940,15.02919958,232.88,232.78,0.71]
[1759750475133,1.69992519,232.86,232.78,0.71]
[1759750475340,1.69992519,232.83,232.74,0.71]
[1759750475860,1.69992519,232.85,232.75,20.8]
[1759750476168,1.69992519,232.84,232.75,20.8]
[1759750476745,15.03049041,232.86,232.75,4.2963783]
[1759750476958,4.29442583,232.86,232.76,0.71]
[1759750477363,4.29442583,232.86,232.78,20.8]
[1759750477539,4.29442583,232.86,232.79,0.71]
[1759750477947,4.29442583,232.86,232.79,21.51]
[1759750478556,1.69992519,232.87,232.79,0.71]
[1759750478947,1.69992519,232.87,232.79,5.00568952]
[1759750479343,1.69992519,232.87,232.79,0.71]
[1759750479539,1.69992519,232.83,232.73,0.71]
[1759750479752,1.69992519,232.82,232.73,0.71]
[1759750479951,4.29534813,232.81,232.73,5.00664495]
[1759750480378,4.29534813,232.81,232.73,4.29664495]
[1759750480673,4.29534813,232.81,232.74,0.71]
[1759750480859,4.29512999,232.83,232.74,0.71]
[1759750481256,0.67,232.87,232.76,20.8]
[1759750481484,12.5764004,232.89,232.77,0.71]
[1759750481760,32.20442933,232.9,232.77,0.71]
[1759750482138,36.4981176,232.9,232.78,4.2959017]
[1759750482339,10.87647521,232.92,232.81,20.8]
[1759750482340,4.29347779,232.92,232.81,20.8]
[1759750482546,4.29347779,232.92,232.82,0.71]
[1759750483265,4.96347779,232.92,232.82,0.71]
[1759750484047,1.69992519,232.9,232.78,20.8]
[1759750484253,1.69992519,232.9,232.8,0.71]
[1759750484553,2.36992519,232.89,232.8,0.71]
[1759750484952,2.36992519,232.89,232.82,20.8]
[1759750484953,0.67,232.89,232.82,20.8]
[1759750485154,0.67,232.89,232.8,0.71]
[1759750485365,0.67,232.88,232.8,0.71]
[1759750486150,4.96407372,232.88,232.81,4.29534813]
[1759750486369,4.96407372,232.88,232.81,5.00534813]
[1759750486566,4.29407372,232.88,232.81,5.00534813]
[1759750486776,0.67,232.93,232.82,0.71]
[1759750487157,4.96313527,232.93,232.82,0.71]
[1759750487360,4.96313527,232.93,232.84,20.8]
[1759750487545,4.96313527,232.93,232.85,0.71]
[1759750488176,4.96313527,232.93,232.86,4.29442583]
[1759750488551,0.68,233.06,232.89,20.8]
[1759750488770,0.1,233.1,232.86,41.93049041]
[1759750488771,5.99011352,233.09,232.93,20.8]
[1759750488955,1.69992519,233.04,232.94,0.67]
[1759750489277,2.37992519,233.03,232.94,0.67]
[1759750489456,1.69992519,233.02,232.92,0.67]
[1759750489646,0.68,233.01,232.92,0.67]
[1759750490355,4.97168833,233.01,232.92,0.67]
[1759750490955,4.97168833,233.01,232.92,4.96328677]
[1759750491880,4.97168833,233.01,232.93,0.67]
[1759750492174,0.68,233.01,232.93,0.67]
[1759750492388,0.68,233.04,232.95,20.8]
[1759750492559,0.68,233.04,232.96,0.67]
[1759750492761,10.87647521,233.08,232.96,0.67]
[1759750493081,0.68,233.07,232.96,0.67]
[1759750494362,4.29074058,233.06,232.97,4.29239816]
[1759750494657,0.68,233.05,232.95,0.67]
[1759750495086,4.80572526,233.05,232.95,0.67]
[1759750495389,0.68,233.05,232.95,0.67]
[1759750495695,4.12572526,233.04,232.94,0.67]
[1759750495893,4.12572526,233.02,232.91,21.47]
[1759750496065,4.12572526,233.0,232.91,0.67]
[1759750496263,0.68,232.99,232.91,0.67]
[1759750496463,4.29221392,232.98,232.91,0.67]
[1759750496670,4.97221392,232.98,232.91,0.67]
[1759750497064,4.97221392,232.98,232.88,21.47]
[1759750497268,0.68,232.97,232.88,25.76402564]
[1759750498574,4.29258241,232.96,232.88,25.76402564]
[1759750498793,0.68,232.97,232.89,0.67]
[1759750498968,4.97239993,232.97,232.89,0.67]
[1759750499671,4.12572526,232.96,232.88,20.8]
[1759750499970,0.68,232.95,232.88,20.8]
[1759750500168,0.68,232.95,232.86,0.67]
[1759750500384,4.12572526,232.92,232.84,0.67]
[1759750500580,8.41941353,232.9,232.81,0.67]
[1759750500778,0.68,232.89,232.81,4.96532151]
[1759750501290,0.68,232.88,232.81,0.67]
[1759750501472,0.68,232.88,232.79,4.96566515]
[1759750502387,4.97421506,232.88,232.79,4.29566515]
[1759750502596,0.68,232.88,232.8,0.67]
[1759750502890,4.97331959,232.92,232.8,0.67]
[1759750503388,4.29276668,232.95,232.81,20.8]
[1759750503578,4.29276668,232.95,232.82,0.67]
[1759750503905,4.97276668,232.95,232.82,21.47]
[1759750504207,4.97276668,232.95,232.83,0.67]
[1759750504499,4.97276668,232.95,232.84,15.03178147]
[1759750504679,4.97276668,232.95,232.85,0.67]
[1759750505404,0.68,232.95,232.87,20.8]
[1759750505586,4.97279007,232.95,232.87,21.47]
[1759750505897,0.68,232.94,232.85,0.67]
[1759750506410,4.97256117,232.97,232.86,4.29442583]
[1759750506693,4.97256117,232.97,232.87,0.67]
[1759750506894,0.68,232.97,232.87,0.67]
[1759750507275,4.29221459,232.98,232.87,0.67]
[1759750507970,0.68,232.99,232.88,15.02919958]
[1759750508192,0.68,233.07,232.92,10.87647521]
[1759750508511,0.68,233.07,232.95,20.8]
[1759750508678,0.68,233.07,232.96,0.67]
[1759750509207,4.29074058,233.06,232.97,4.29239816]
[1759750509380,4.29074058,233.06,232.98,0.67]
[1759750509579,14.8511961,233.09,232.98,0.67]
[1759750509580,4.970201,233.09,233.0,20.8]
[1759750509780,4.970201,233.09,233.0,21.47]
[1759750510675,4.970201,233.09,233.01,4.2916613]
[1759750511002,0.1,233.1,233.02,0.67]
[1759750511378,0.68,233.09,232.99,21.47]
[1759750511585,0.68,233.08,233.0,25.09169965]
[1759750512897,4.29055648,233.07,233.0,25.09169965]
[1759750513101,0.68,233.06,232.96,0.67]
[1759750513278,4.12572526,233.05,232.96,0.67]
[1759750513483,4.12572526,233.03,232.94,15.16939169]
[1759750513786,0.68,233.04,232.97,20.8]
[1759750514184,15.01694769,233.07,232.97,20.8]
[1759750514185,4.97055648,233.07,232.98,0.67]
[1759750514784,15.69694769,233.07,232.98,0.67]
[1759750514989,4.12572526,233.06,232.98,0.67]
[1759750515185,4.12572526,233.06,232.97,25.09236648]
[1759750515186,0.68,233.05,232.97,20.8]
[1759750515406,6.01970245,233.04,232.97,20.8]
[1759750515698,6.01970245,233.04,232.95,4.96260828]
[1759750515699,0.68,233.03,232.95,0.67]
[1759750516280,0.68,233.03,232.96,20.8]
[1759750516481,6.69970245,233.02,232.94,20.8]
[1759750516716,0.68,233.02,232.94,20.8]
[1759750517007,4.2916613,233.01,232.94,25.56286693]
[1759750518274,4.2916613,233.01,232.94,21.27]
[1759750518673,4.9716613,233.01,232.94,21.27]
[1759750519093,6.69970245,233.04,232.95,0.65]
[1759750519295,32.32406107,233.13,232.96,31.67647521]
[1759750519296,0.68,233.07,232.96,31.67647521]
[1759750519490,0.68,233.07,232.97,0.65]
[1759750520212,6.69970245,233.07,232.97,21.45]
[1759750520394,0.68,233.06,232.97,21.45]
[1759750521093,4.97092469,233.05,232.97,21.45]
[1759750521287,10.99062714,233.05,232.97,25.74237268]
[1759750521614,4.97018833,233.09,232.99,20.8]
[1759750521807,10.98989078,233.09,233.0,0.65]
[1759750522696,10.98989078,233.09,233.01,4.2916613]
[1759750523007,10.98989078,233.09,233.02,0.65]
[1759750523400,4.97018833,233.09,233.02,0.65]
[1759750524021,4.97018833,233.09,233.01,4.2916613]
[1759750524801,4.97018833,233.09,233.0,4.94171378]
[1759750524992,4.97018833,233.09,233.0,0.65]
[1759750525193,6.01970245,233.08,232.99,20.8]
[1759750525399,0.68,233.07,232.99,20.8]
[1759750525602,0.68,233.07,233.0,0.65]
[1759750526189,0.1,233.1,233.02,20.8]
[1759750526394,6.69970245,233.09,233.0,0.65]
[1759750526617,0.68,233.09,233.0,0.65]
[1759750526795,6.01970245,233.08,233.0,0.65]
[1759750526996,4.97055648,233.07,232.99,20.8]
[1759750527215,4.97055648,233.07,232.99,21.45]
[1759750528227,4.29055648,233.07,232.99,21.45]
[1759750528401,0.68,233.06,232.99,21.45]
[1759750529200,4.29092469,233.05,232.99,21.45]
[1759750529896,0.68,233.06,232.99,25.74201846]
[1759750530299,0.78,233.1,233.0,0.65]
[1759750530508,0.1,233.1,233.0,0.65]
[1759750531095,4.39002849,233.1,233.01,4.2916613]
[1759750531302,4.39002849,233.1,233.02,0.65]
[1759750532604,4.39002849,233.1,233.03,4.29129296]
[1759750532805,4.39002849,233.1,233.04,0.65]
[1759750533038,0.1,233.1,233.04,0.65]
[1759750535114,0.1,233.1,233.06,20.8]
[1759750535304,4.39003343,233.1,233.06,21.5]
[1759750535821,5.05003343,233.1,233.04,0.7]
[1759750536928,0.1,233.1,233.05,20.8]
[1759750537097,0.1,233.1,233.06,0.7]
[1759750537305,4.39006609,233.1,233.06,20.8]
[1759750537503,4.39006609,233.1,233.03,32.37647521]
[1759750537832,0.1,233.1,233.06,20.8]
[1759750538025,1.0,233.08,233.07,0.7]
[1759750538209,1.0,233.08,233.06,20.8]
[1759750538411,1.0,233.08,233.03,20.8]
[1759750538720,6.01970245,233.06,232.98,4.99220456]
[1759750538903,0.66,233.05,232.98,4.99220456]
[1759750539101,4.29110882,233.04,232.98,4.99220456]
[1759750539499,4.29110882,233.04,233.0,20.8]
[1759750539705,4.29110882,233.04,233.0,0.7]
[1759750540007,4.29110882,233.04,232.98,25.79218833]
[1759750540203,0.66,233.03,232.95,11.57647521]
[1759750540408,3.31155572,233.02,232.92,15.86976773]
[1759750540612,3.31155572,233.02,232.92,0.7]
[1759750540613,2.65155572,233.0,232.92,0.7]
[1759750540907,2.65155572,233.0,232.92,4.99331382]
[1759750541109,6.68152835,233.0,232.92,4.99331382]
[1759750541321,4.9520297,232.99,232.92,0.7]
[1759750542314,6.02152835,233.01,232.93,20.8]
[1759750542518,6.68152835,233.01,232.93,20.8]
[1759750543127,6.68152835,233.01,232.93,21.5]
[1759750543535,4.29184549,233.0,232.93,21.5]
[1759750543719,4.95184549,233.0,232.93,0.7]
[1759750545769,4.95184549,233.0,232.89,10.73449182]
[1759750545770,6.02152835,232.99,232.89,0.7]
[1759750546062,21.8,233.08,232.82,7.22919787]
[1759750546063,10.31318628,233.02,232.93,20.8]
[1759750546370,4.29092469,233.05,232.97,20.8]
[1759750546659,4.95092469,233.05,232.97,21.5]
[1759750547025,4.29068907,233.07,232.98,0.7]
[1759750547626,4.29068907,233.07,232.99,25.0920297]
[1759750550243,5.29048364,233.08,233.02,20.8]
[1759750550649,6.70152835,233.07,233.01,20.8]
[1759750550845,0.68,233.06,233.0,20.8]
[1759750551056,4.97092469,233.05,233.0,20.8]
[1759750551351,0.68,233.05,233.0,21.46]
[1759750552227,4.29080816,233.06,233.01,0.66]
[1759750552563,5.9704958,233.08,233.02,0.66]
[1759750553261,5.9704958,233.08,233.02,21.46]
[1759750553570,5.9704958,233.08,233.02,20.8]
[1759750553747,5.9704958,233.08,233.02,10.87647521]
[1759750554135,1.0,233.08,233.02,11.53647521]
[1759750554476,1.0,233.08,233.03,0.66]
[1759750554640,1.0,233.08,233.04,10.87647521]
[1759750554958,0.68,233.07,233.0,0.66]
[1759750555145,10.99214037,233.07,233.01,20.8]
[1759750555468,10.31214037,233.07,233.0,10.87647521]
[1759750555765,7.70152835,233.08,233.03,20.8]
[1759750556061,1.0,233.08,233.03,21.46]
[1759750556232,1.0,233.08,233.04,0.66]
[1759750556439,1.68,233.08,233.03,20.8]
[1759750556636,1.68,233.08,233.03,21.46]
[1759750557034,1.68,233.08,233.03,25.75120944]
[1759750557669,1.0,233.08,233.04,0.66]
[1759750557847,5.29037782,233.08,233.03,20.8]
[1759750558039,0.68,233.07,233.03,20.8]
[1759750558958,0.68,233.06,233.03,20.8]
[1759750559265,0.68,233.05,233.03,20.8]
[1759750559936,0.68,233.04,233.03,20.8]
[1759750560137,4.29102017,233.05,233.03,20.8]
[1759750560851,0.68,233.04,232.97,4.29234205]
[1759750561055,0.68,233.04,233.0,20.8]
[1759750561957,10.31254852,233.05,233.0,21.46]
[1759750562137,4.97102017,233.05,233.0,21.46]
[1759750562337,4.29102017,233.05,233.0,20.8]
[1759750562537,4.29102017,233.05,233.01,0.66]
[1759750562762,4.29102017,233.05,233.02,0.66]
[1759750562958,7.70152835,233.08,233.01,10.87647521]
[1759750563153,1.0,233.08,233.03,0.66]
[1759750563358,1.0,233.08,233.04,0.66]
[1759750563740,1.0,233.08,233.05,0.66]
[1759750564366,5.29043817,233.08,233.01,10.87647521]
[1759750564564,0.68,233.07,233.01,10.87647521]
[1759750564870,0.68,233.07,233.0,21.46]
[1759750564871,2.65063058,233.06,233.0,20.8]
[1759750565079,6.69951283,233.05,232.98,10.87647521]
[1759750565243,6.01951283,233.03,232.97,0.66]
[1759750565563,0.68,233.04,232.9,0.66]
[1759750565564,6.01951283,232.98,232.9,0.66]
[1759750565864,0.68,232.97,232.91,10.87647521]
[1759750566261,4.97254237,232.97,232.91,10.87647521]
[1759750566645,6.01951283,232.96,232.9,0.66]
[1759750568267,0.68,232.97,232.9,0.66]
[1759750568474,4.97239901,232.97,232.9,4.95366351]
[1759750568775,0.68,232.96,232.9,0.66]
[1759750569253,0.68,232.96,232.88,10.87647521]
[1759750569566,6.01951283,232.95,232.88,10.87647521]
[1759750569948,6.69951283,232.96,232.9,10.87647521]
[1759750570777,6.69951283,232.96,232.9,15.83014531]
[1759750570955,10.3120981,232.96,232.9,15.17014531]
[1759750571282,10.3120981,232.96,232.91,0.66]
[1759750571761,10.9920981,232.96,232.91,0.66]
[1759750572280,0.68,232.95,232.9,10.87647521]
[1759750572577,4.2923317,232.98,232.91,21.46]
[1759750572761,4.29236006,232.98,232.92,11.53647521]
[1759750573967,4.29161169,233.02,232.94,10.87647521]
[1759750574158,0.68,233.04,232.94,10.87647521]
[1759750574159,4.97126496,233.04,232.98,10.87647521]
[1759750574370,4.29126496,233.04,232.98,11.53647521]
[1759750574757,4.97075721,233.06,232.98,10.87647521]
[1759750574974,4.97075721,233.06,233.0,10.87647521]
[1759750576358,4.97075721,233.06,233.0,11.53647521]
[1759750576957,6.69951283,233.05,232.96,11.53647521]
[1759750577154,4.8055962,233.04,232.97,10.87647521]
[1759750577974,4.29129296,233.03,232.97,10.87647521]
[1759750578176,4.8255962,233.02,232.95,10.87647521]
[1759750579055,4.2916613,233.01,232.95,10.87647521]
[1759750579666,4.2916613,233.01,232.95,11.55647521]
[1759750579872,4.29137748,233.03,232.97,10.87647521]
[1759750580592,4.29137748,233.03,232.97,0.68]
[1759750580992,4.29100042,233.05,232.97,0.68]
[1759750581282,5.29055081,233.08,232.99,31.67647521]
[1759750581483,5.29055081,233.08,233.01,10.87647521]
[1759750581672,0.7,233.07,233.01,10.87647521]
[1759750582067,0.7,233.07,233.01,11.55647521]
[1759750582995,4.8255962,233.07,233.01,10.87647521]
[1759750583178,4.29074058,233.06,233.01,10.87647521]
[1759750583387,0.7,233.05,233.01,10.87647521]
[1759750583780,0.7,233.05,232.99,0.68]
[1759750584001,8.41624964,233.07,232.99,4.97201449]
[1759750584188,1.0,233.08,233.0,0.68]
[1759750584381,4.29055648,233.07,233.0,0.68]
[1759750584785,4.29055648,233.07,233.01,10.87647521]
[1759750586481,4.29055648,233.07,233.01,0.68]
[1759750587383,0.7,233.06,233.0,10.87647521]
[1759750587594,0.7,233.06,233.0,11.55647521]
[1759750588703,4.29055648,233.07,233.02,10.87647521]
[1759750588896,4.29055648,233.07,233.03,0.68]
[1759750589701,0.7,233.06,233.0,10.87647521]
[1759750589880,0.7,233.05,232.99,10.87647521]
[1759750590074,4.8255962,233.05,232.99,10.87647521]
[1759750590375,0.7,233.05,232.99,10.87647521]
[1759750590576,0.7,233.05,232.99,11.55647521]
[1759750592102,4.29110882,233.04,232.99,11.55647521]
[1759750592304,4.29110882,233.04,233.0,0.68]
[1759750593102,4.29092469,233.05,233.0,0.68]
[1759750593291,4.99092469,233.05,233.0,0.68]
[1759750594211,4.29092469,233.05,233.01,0.68]
[1759750594787,4.29092469,233.05,233.02,0.67]
[1759750595308,91.94351778,233.07,233.02,0.67]
[1759750595309,4.29074058,233.06,233.02,0.67]
[1759750595893,5.01074058,233.06,233.0,0.67]
[1759750596984,15.73759203,233.06,233.0,0.67]
[1759750597186,17.4347186,233.06,233.0,0.67]
[1759750599605,17.4347186,233.06,232.98,20.8]
[1759750599808,1.69712657,233.04,232.94,4.96290992]
[1759750600122,1.69712657,233.02,232.95,10.87647521]
[1759750600414,0.72,233.01,232.95,10.87647521]
[1759750600995,0.72,233.0,232.95,10.87647521]
[1759750601203,0.72,232.99,232.95,10.87647521]
[1759750601621,4.29221392,232.98,232.95,10.87647521]
[1759750601798,0.72,232.97,232.91,20.8]
[1759750602013,0.72,232.97,232.85,10.73618327]
[1759750602225,0.72,232.96,232.9,10.87647521]
[1759750602408,0.72,232.96,232.9,20.8]
[1759750603913,4.2920297,232.99,232.92,10.87647521]
[1759750604122,4.2920297,232.99,232.93,0.67]
[1759750604501,4.2920297,232.99,232.94,10.87647521]
[1759750604808,4.2920297,232.99,232.95,0.67]
[1759750605122,4.2920297,232.99,232.96,0.67]
[1759750605618,2.41712657,232.98,232.9,20.8]
[1759750605931,0.72,232.97,232.9,21.47]
[1759750606507,1.69712657,232.98,232.9,21.47]
[1759750606710,2.41712657,232.96,232.9,20.8]
[1759750607916,4.29276668,232.95,232.91,20.8]
[1759750608101,4.29276668,232.95,232.92,0.69]
[1759750608305,4.29252764,232.97,232.93,0.69]
[1759750608499,4.29252764,232.97,232.91,20.8]
[1759750608927,5.98965421,232.97,232.91,20.8]
[1759750609333,16.72064961,232.97,232.91,20.8]
[1759750609500,15.02352304,232.97,232.91,20.8]
[1759750613314,15.02352304,232.97,232.91,0.69]
[1759750613819,15.02352304,232.97,232.89,10.87647521]
[1759750613820,1.69712657,232.94,232.89,10.87647521]
[1759750614139,2.37712657,232.94,232.89,11.56647521]
[1759750614500,0.68,232.93,232.89,11.56647521]
[1759750614698,1.69712657,232.9,232.87,10.87647521]
[1759750615002,1.69712657,232.88,232.84,0.69]
[1759750615325,4.29424142,232.87,232.84,0.69]
[1759750616116,4.29424142,232.87,232.82,10.87647521]
[1759750616333,4.29424142,232.87,232.83,0.69]
[1759750616825,0.68,232.86,232.8,0.69]
[1759750617025,0.68,232.86,232.81,10.87647521]
[1759750617222,4.2947947,232.84,232.81,10.87647521]
[1759750619415,4.2947947,232.84,232.81,11.56647521]
[1759750620217,4.9747947,232.84,232.81,10.87647521]
[1759750620423,0.68,232.83,232.81,10.87647521]
[1759750620734,4.97513729,232.83,232.78,0.69]
[1759750621034,0.68,232.83,232.79,11.56647521]
[1759750621336,0.68,232.82,232.78,10.87647521]
[1759750621715,1.69712657,232.8,232.73,0.69]
[1759750622028,1.69712657,232.78,232.74,10.87647521]
[1759750622204,1.69712657,232.78,232.71,10.87647521]
[1759750622413,1.69712657,232.8,232.75,10.87647521]
[1759750622639,4.29571716,232.79,232.75,11.56647521]
[1759750623513,2.37712657,232.78,232.7,0.89]
[1759750623841,2.37712657,232.78,232.71,32.36647521]
[1759750624411,2.37712657,232.78,232.71,11.56647521]